fUSD/lending_fUSD_20250923
["ID","MTS","AMOUNT","RATE_DAILY","PERIOD"]
[387138030,1758588737428,-422.43,0.00023286,2]
[387138031,1758588737437,-665.52,0.00023286,2]
[387138032,1758588737446,-1517.07,0.00023286,2]
[387138033,1758588737455,-1290.57,0.00023286,2]
[387138034,1758588737464,-599.8,0.00023286,2]
[387138035,1758588737473,-864.51,0.00023286,2]
[387138036,1758588737483,-700.22,0.00023286,2]
[387138037,1758588737492,-578.19,0.00023286,2]
[387138038,1758588737501,-1270.12,0.00023286,2]
[387138039,1758588737510,-529.42,0.00023286,2]
[387138040,1758588737519,-790.42,0.00023286,2]
[387138041,1758588737528,-546.07,0.00023286,2]
[387138042,1758588737538,-796.17,0.00023286,2]
[387138043,1758588737547,-1797.38,0.00023286,2]
[387138044,1758588737556,-1179.29,0.00023286,2]
[387138045,1758588737566,-1067.68,0.00023286,2]
[387138046,1758588737575,-685.94,0.00023286,2]
[387138047,1758588737584,-400.0,0.00023286,2]
[387138048,1758588737594,-400.0,0.00023286,2]
[387138049,1758588737604,-4410.79,0.00023286,2]
[387138050,1758588737797,-400.0,0.00023286,2]
[387138051,1758588737808,-400.0,0.00023286,2]
[387138052,1758588737818,-635.32,0.00023286,2]
[387138053,1758588737828,-825.39,0.00023286,2]
[387138054,1758588737837,-1159.17,0.00023286,2]
[387138055,1758588737847,-3621.17,0.00023286,2]
[387138056,1758588737855,-536.01,0.00023286,2]
[387138057,1758588737865,-1555.92,0.00023286,2]
[387138058,1758588737875,-685.82,0.00023286,2]
[387138059,1758588737884,-400.0,0.00023286,2]
[387138060,1758588737894,-1688.59,0.00023286,2]
[387138061,1758588737903,-533.54,0.00023286,2]
[387138062,1758588737913,-3199.7,0.00023286,2]
[387138063,1758588737923,-400.0,0.00023286,2]
[387138064,1758588737932,-5083.46,0.00023286,2]
[387138065,1758588737942,-532.7,0.00023286,2]
[387138066,1758588737952,-726.03,0.00023286,2]
[387138067,1758588737961,-1692.11,0.00023286,2]
[387138068,1758588737971,-633.11,0.00023286,2]
[387138069,1758588737981,-411.61,0.00023286,2]
[387138070,1758588737990,-648.3,0.00023286,2]
[387138071,1758588738000,-857.03,0.00023286,2]
[387138072,1758588738009,-722.01,0.00023286,2]
[387138073,1758588738018,-1108.24,0.00023286,2]
[387138074,1758588738029,-464.86,0.00023286,2]
[387138075,1758588738039,-2367.09,0.00023286,2]
[387138076,1758588738049,-503.13,0.00023286,2]
[387138077,1758588738059,-1636.84,0.00023286,2]
[387138078,1758588738070,-2136.91,0.00023286,2]
[387138079,1758588738079,-555.5,0.00023286,2]
[387138080,1758588738088,-914.0,0.00023286,2]
[387138081,1758588738098,-887.03,0.00023286,2]
[387138082,1758588738110,-4785.63,0.00023286,2]
[387138083,1758588738120,-1767.45,0.00023286,2]
[387138084,1758588738130,-1514.68,0.00023286,2]
[387138085,1758588738140,-553.9,0.00023286,2]
[387138086,1758588738150,-644.46,0.00023286,2]
[387138087,1758588738160,-434.59,0.00023286,2]
[387138088,1758588738170,-1093.45,0.00023286,2]
[387138089,1758588738180,-400.0,0.00023286,2]
[387138090,1758588738190,-2259.45,0.00023286,2]
[387138091,1758588738201,-1283.49,0.00023286,2]
[387138092,1758588738211,-1392.04,0.00023286,2]
[387138093,1758588738221,-579.07,0.00023286,2]
[387138094,1758588738231,-400.0,0.00023286,2]
[387138095,1758588738241,-586.63,0.00023286,2]
[387138096,1758588738251,-852.34,0.00023286,2]
[387138097,1758588738261,-400.0,0.00023286,2]
[387138098,1758588738271,-602.29,0.00023286,2]
[387138099,1758588738281,-2120.46,0.00023286,2]
[387138100,1758588738291,-400.0,0.00023286,2]
[387138101,1758588738300,-730.17,0.00023286,2]
[387138102,1758588738311,-713.11,0.00023286,2]
[387138103,1758588738321,-824.24,0.00023286,2]
[387138104,1758588738331,-2178.93,0.00023286,2]
[387138105,1758588738341,-563.68,0.00023286,2]
[387138106,1758588738351,-400.0,0.00023286,2]
[387138107,1758588738361,-624.27,0.00023286,2]
[387138108,1758588738371,-1279.8,0.00023286,2]
[387138109,1758588738381,-400.0,0.00023286,2]
[387138110,1758588738390,-400.0,0.00023287,2]
[387138111,1758588738400,-400.0,0.00023287,2]
[387138112,1758588738410,-400.0,0.00023287,2]
[387138113,1758588738420,-400.0,0.00023287,2]
[387138114,1758588738430,-400.0,0.00023287,2]
[387138115,1758588738440,-400.0,0.00023287,2]
[387138116,1758588738449,-400.0,0.00023287,2]
[387138117,1758588738459,-400.0,0.00023287,2]
[387138118,1758588738469,-555.17,0.00023287,2]
[387138119,1758588738478,-491.16,0.00023287,2]
[387138120,1758588738488,-400.0,0.00023287,2]
[387138121,1758588738497,-400.0,0.00023287,2]
[387138122,1758588738506,-400.0,0.00023287,2]
[387138123,1758588738515,-416.06,0.00023287,2]
[387138124,1758588738525,-439.92,0.00023287,2]
[387138125,1758588738534,-400.0,0.00023287,2]
[387138126,1758588738544,-428.44,0.00023287,2]
[387138127,1758588738553,-258.09,0.00023287,2]
[387138128,1758588738562,-400.0,0.00023287,2]
[387138129,1758588738571,-400.0,0.00023287,2]
[387138130,1758588738581,-400.0,0.00023287,2]
[387138131,1758588738591,-754.63,0.00023287,2]
[387138132,1758588738602,-403.38,0.00023287,2]
[387138133,1758588738611,-917.82,0.00023287,2]
[387138134,1758588738621,-400.0,0.00023287,2]
[387138135,1758588738631,-504.07,0.00023287,2]
[387138136,1758588738641,-535.33,0.00023287,2]
[387138137,1758588738651,-414.45,0.00023287,2]
[387138138,1758588738660,-597.93,0.00023287,2]
[387138139,1758588738670,-400.0,0.00023287,2]
[387138140,1758588738680,-599.79,0.00023287,2]
[387138141,1758588738690,-512.84,0.00023287,2]
[387138142,1758588738701,-830.32,0.00023287,2]
[387138143,1758588738710,-400.0,0.00023287,2]
[387138144,1758588738720,-400.0,0.00023287,2]
[387138145,1758588738730,-400.0,0.00023287,2]
[387138146,1758588738739,-877.74,0.00023287,2]
[387138147,1758588738749,-454.04,0.00023287,2]
[387138148,1758588738759,-944.31,0.00023287,2]
[387138149,1758588738769,-400.0,0.00023287,2]
[387138150,1758588738779,-866.7,0.00023287,2]
[387138151,1758588738789,-400.0,0.00023287,2]
[387138152,1758588738798,-983.28,0.00023287,2]
[387138153,1758588738808,-400.0,0.00023287,2]
[387138154,1758588738818,-722.94,0.00023287,2]
[387138155,1758588738828,-400.0,0.00023287,2]
[387138156,1758588738838,-542.91,0.00023287,2]
[387138157,1758588738848,-400.0,0.00023287,2]
[387138158,1758588738858,-531.68,0.00023287,2]
[387138159,1758588738867,-559.02,0.00023287,2]
[387138160,1758588738877,-400.0,0.00023287,2]
[387138161,1758588738886,-682.63,0.00023287,2]
[387138162,1758588738901,-317.5,0.00023287,2]
[387138163,1758588738910,-461.64,0.00023287,2]
[387138164,1758588738920,-400.0,0.00023287,2]
[387138165,1758588738930,-671.51,0.00023287,2]
[387138166,1758588738941,-404.72,0.00023287,2]
[387138167,1758588738951,-607.71,0.00023287,2]
[387138168,1758588738961,-400.0,0.00023287,2]
[387138169,1758588738971,-400.0,0.00023287,2]
[387138170,1758588738981,-421.51,0.00023287,2]
[387138171,1758588738990,-965.94,0.00023287,2]
[387138172,1758588738999,-596.18,0.00023287,2]
[387138173,1758588739011,-400.0,0.00023287,2]
[387138174,1758588739020,-400.0,0.00023287,2]
[387138175,1758588739030,-417.6,0.00023287,2]
[387138176,1758588739039,-779.83,0.00023287,2]
[387138177,1758588739049,-400.0,0.00023287,2]
[387138178,1758588739058,-400.0,0.00023287,2]
[387138179,1758588739068,-720.23,0.00023287,2]
[387138180,1758588739077,-400.0,0.00023287,2]
[387138181,1758588739087,-432.08,0.00023287,2]
[387138182,1758588739097,-926.5,0.00023287,2]
[387138183,1758588739110,-453.42,0.00023287,2]
[387138184,1758588739120,-400.0,0.00023287,2]
[387138185,1758588739130,-499.27,0.00023287,2]
[387138186,1758588739140,-415.36,0.00023287,2]
[387138187,1758588739151,-400.0,0.00023287,2]
[387138188,1758588739160,-1064.17,0.00023287,2]
[387138189,1758588739170,-400.0,0.00023287,2]
[387138190,1758588739181,-400.0,0.00023287,2]
[387138191,1758588739190,-400.0,0.00023287,2]
[387138192,1758588739200,-428.67,0.00023287,2]
[387138193,1758588739210,-427.84,0.00023287,2]
[387138194,1758588739219,-400.0,0.00023287,2]
[387138195,1758588739229,-400.0,0.00023287,2]
[387138196,1758588739238,-715.39,0.00023287,2]
[387138197,1758588739248,-515.86,0.00023287,2]
[387138198,1758588739257,-400.0,0.00023287,2]
[387138199,1758588739267,-400.0,0.00023287,2]
[387138200,1758588739277,-1049.53,0.00023287,2]
[387138201,1758588739286,-400.0,0.00023287,2]
[387138202,1758588739297,-400.0,0.00023287,2]
[387138203,1758588739308,-669.85,0.00023287,2]
[387138204,1758588739317,-524.43,0.00023287,2]
[387138205,1758588739327,-480.73,0.00023287,2]
[387138206,1758588739337,-418.66,0.00023287,2]
[387138207,1758588739346,-400.0,0.00023287,2]
[387138208,1758588739356,-645.11,0.00023287,2]
[387138209,1758588739365,-3259.34,0.00023287,2]
[387138210,1758588739375,-400.0,0.00023287,2]
[387138211,1758588739384,-400.0,0.00023287,2]
[387138212,1758588739394,-819.08,0.00023287,2]
[387138213,1758588739403,-521.7,0.00023287,2]
[387138214,1758588739412,-527.41,0.00023287,2]
[387138215,1758588739421,-400.0,0.00023287,2]
[387138216,1758588739430,-707.11,0.00023287,2]
[387138217,1758588739439,-4823.52,0.00023287,2]
[387138218,1758588739449,-1811.93,0.00023287,2]
[387138219,1758588739458,-658.31,0.00023287,2]
[387138220,1758588739468,-1161.68,0.00023287,2]
[387138221,1758588739477,-751.69,0.00023287,2]
[387138222,1758588739486,-532.84,0.00023287,2]
[387138223,1758588739496,-760.3,0.00023287,2]
[387138224,1758588739505,-427.52,0.00023287,2]
[387138225,1758588739514,-400.0,0.00023287,2]
[387138226,1758588739524,-450.15,0.00023287,2]
[387138227,1758588739533,-500.42,0.00023287,2]
[387138228,1758588739544,-535.91,0.00023287,2]
[387138229,1758588739554,-440.64,0.00023287,2]
[387138230,1758588739563,-839.22,0.00023287,2]
[387138231,1758588739573,-1017.53,0.00023287,2]
[387138232,1758588739583,-400.0,0.00023287,2]
[387138233,1758588739593,-9183.84,0.00023287,2]
[387138234,1758588739603,-170.82809348,0.00023287,2]
[387138235,1758588739613,-400.0,0.00023287,2]
[387138236,1758588739623,-451.23,0.00023287,2]
[387138237,1758588739634,-400.0,0.00023287,2]
[387138238,1758588739646,-894.16,0.00023287,2]
[387138239,1758588739655,-683.2,0.00023287,2]
[387138240,1758588739664,-1123.88,0.00023287,2]
[387138241,1758588739675,-406.45,0.00023287,2]
[387138242,1758588739685,-1005.19,0.00023287,2]
[387138243,1758588739695,-808.52,0.00023287,2]
[387138244,1758588739704,-1110.73,0.00023287,2]
[387138245,1758588739714,-400.0,0.00023287,2]
[387138246,1758588739724,-1205.76,0.00023287,2]
[387138247,1758588739736,-400.0,0.00023287,2]
[387138248,1758588739745,-741.22,0.00023287,2]
[387138249,1758588739755,-833.460957,0.00023288,7]
[387138250,1758588739764,-833.460957,0.00023288,7]
[387138251,1758588739773,-833.460957,0.00023288,7]
[387138252,1758588739782,-833.460957,0.00023288,7]
[387138253,1758588739791,-833.460957,0.00023288,7]
[387138254,1758588739800,-833.460957,0.00023288,7]
[387138255,1758588739809,-833.460957,0.00023288,7]
[387138256,1758588739819,-833.460957,0.00023288,7]
[387138257,1758588739828,-833.460957,0.00023288,7]
[387138258,1758588739838,-833.460957,0.00023288,7]
[387138259,1758588739847,-833.460957,0.00023288,7]
[387138260,1758588739856,-833.460957,0.00023288,7]
[387138261,1758588739866,-833.460957,0.00023288,7]
[387138262,1758588739875,-833.460957,0.00023288,7]
[387138263,1758588739884,-833.460957,0.00023288,7]
[387138264,1758588739898,-833.460957,0.00023288,7]
[387138265,1758588739908,-833.460957,0.00023288,7]
[387138266,1758588739917,-833.460957,0.00023288,7]
[387138267,1758588739927,-833.460957,0.00023288,7]
[387138268,1758588739937,-833.4609501,0.00023288,7]
[387138269,1758588739946,-616.0,0.00023288,7]
[387138270,1758588739955,-4706.46893412,0.00023333,7]
[387138271,1758588739964,-1000.0,0.00023347,2]
[387138272,1758588739974,-168.0,0.00023379,2]
[387138273,1758588739984,-150.0,0.00023379,2]
[387138274,1758588739995,-500.0,0.00023399,2]
[387138275,1758588740005,-500.0,0.00023399,2]
[387138276,1758588740015,-500.0,0.00023399,2]
[387138277,1758588740026,-500.0,0.00023399,2]
[387138278,1758588740036,-500.0,0.00023399,2]
[387138279,1758588740045,-500.0,0.00023399,2]
[387138280,1758588740054,-500.0,0.00023399,2]
[387138281,1758588740064,-500.0,0.00023399,2]
[387138282,1758588740073,-500.0,0.00023399,2]
[387138283,1758588740082,-500.0,0.00023399,2]
[387138284,1758588740091,-500.0,0.00023399,2]
[387138285,1758588740101,-500.0,0.00023399,2]
[387138286,1758588740114,-500.0,0.00023399,2]
[387138287,1758588740123,-500.0,0.00023399,2]
[387138288,1758588740132,-500.0,0.00023399,2]
[387138289,1758588740141,-500.0,0.00023399,2]
[387138290,1758588740150,-500.0,0.00023399,2]
[387138291,1758588740159,-500.0,0.00023399,2]
[387138292,1758588740168,-500.0,0.00023399,2]
[387138293,1758588740177,-500.0,0.00023399,2]
[387138294,1758588740187,-500.0,0.00023399,2]
[387138295,1758588740197,-500.0,0.00023399,2]
[387138296,1758588740206,-500.0,0.00023399,2]
[387138297,1758588740216,-500.0,0.00023399,2]
[387138298,1758588740226,-500.0,0.00023399,2]
[387138299,1758588740237,-500.0,0.00023399,2]
[387138300,1758588740246,-500.0,0.00023399,2]
[387138301,1758588740255,-500.0,0.00023399,2]
[387138302,1758588740264,-500.0,0.00023399,2]
[387138303,1758588740273,-500.0,0.00023399,2]
[387138304,1758588740283,-500.0,0.00023399,2]
[387138305,1758588740291,-500.0,0.00023399,2]
[387138306,1758588740301,-500.0,0.00023399,2]
[387138307,1758588740310,-500.0,0.00023399,2]
[387138308,1758588740320,-500.0,0.00023399,2]
[387138309,1758588740329,-500.0,0.00023399,2]
[387138310,1758588740338,-500.0,0.00023399,2]
[387138311,1758588740347,-500.0,0.00023399,2]
[387138312,1758588740357,-500.0,0.00023399,2]
[387138313,1758588740366,-500.0,0.00023399,2]
[387138314,1758588740375,-500.0,0.00023399,2]
[387138315,1758588740384,-500.0,0.00023399,2]
[387138316,1758588740393,-500.0,0.00023399,2]
[387138317,1758588740403,-500.0,0.00023399,2]
[387138318,1758588740412,-500.0,0.00023399,2]
[387138319,1758588740422,-500.0,0.00023399,2]
[387138320,1758588740433,-500.0,0.00023399,2]
[387138321,1758588740443,-500.0,0.00023399,2]
[387138322,1758588740453,-500.0,0.00023399,2]
[387138323,1758588740463,-500.0,0.00023399,2]
[387138324,1758588740473,-500.0,0.00023399,2]
[387138325,1758588740483,-500.0,0.00023399,2]
[387138326,1758588740495,-500.0,0.00023399,2]
[387138327,1758588740506,-500.0,0.00023399,2]
[387138328,1758588740517,-500.0,0.00023399,2]
[387138329,1758588740528,-500.0,0.00023399,2]
[387138330,1758588740537,-500.0,0.00023399,2]
[387138331,1758588740547,-500.0,0.00023399,2]
[387138332,1758588740556,-500.0,0.00023399,2]
[387138333,1758588740565,-500.0,0.00023399,2]
[387138334,1758588740575,-500.0,0.00023399,2]
[387138335,1758588740583,-500.0,0.00023399,2]
[387138336,1758588740593,-500.0,0.00023399,2]
[387138337,1758588740601,-500.0,0.00023399,2]
[387138338,1758588740611,-500.0,0.00023399,2]
[387138339,1758588740621,-500.0,0.00023399,2]
[387138340,1758588740630,-500.0,0.00023399,2]
[387138341,1758588740640,-500.0,0.00023399,2]
[387138342,1758588740828,-500.0,0.00023399,2]
[387138343,1758588740838,-500.0,0.00023399,2]
[387138344,1758588740848,-500.0,0.00023399,2]
[387138345,1758588740859,-500.0,0.00023399,2]
[387138346,1758588740869,-500.0,0.00023399,2]
[387138347,1758588740879,-500.0,0.00023399,2]
[387138348,1758588740889,-500.0,0.00023399,2]
[387138349,1758588740902,-500.0,0.00023399,2]
[387138350,1758588740914,-500.0,0.00023399,2]
[387138351,1758588740924,-500.0,0.00023399,2]
[387138352,1758588740934,-500.0,0.00023399,2]
[387138353,1758588740943,-500.0,0.00023399,2]
[387138354,1758588740953,-500.0,0.00023399,2]
[387138355,1758588740962,-500.0,0.00023399,2]
[387138356,1758588740972,-500.0,0.00023399,2]
[387138357,1758588740981,-500.0,0.00023399,2]
[387138358,1758588740993,-500.0,0.00023399,2]
[387138359,1758588741003,-500.0,0.00023399,2]
[387138360,1758588741013,-500.0,0.00023399,2]
[387138361,1758588741023,-500.0,0.00023399,2]
[387138362,1758588741033,-500.0,0.00023399,2]
[387138363,1758588741045,-500.0,0.00023399,2]
[387138364,1758588741055,-500.0,0.00023399,2]
[387138365,1758588741065,-500.0,0.00023399,2]
[387138366,1758588741074,-500.0,0.00023399,2]
[387138367,1758588741084,-500.0,0.00023399,2]
[387138368,1758588741094,-500.0,0.00023399,2]
[387138369,1758588741104,-500.0,0.00023399,2]
[387138370,1758588741117,-500.0,0.00023399,2]
[387138371,1758588741126,-500.0,0.00023399,2]
[387138372,1758588741137,-500.0,0.00023399,2]
[387138373,1758588741147,-753.0,0.00023399,2]
[387138374,1758588741158,-500.0,0.00023399,2]
[387138375,1758588741167,-500.0,0.00023399,2]
[387138376,1758588741177,-500.0,0.00023399,2]
[387138377,1758588741187,-500.0,0.00023399,2]
[387138378,1758588741198,-1060.36442365,0.00023415,2]
[387138379,1758588741207,-168.0,0.0002343,2]
[387138380,1758588741216,-168.0,0.00023459,2]
[387138381,1758588741226,-156.87546558,0.0002346,2]
[387138382,1758588741235,-150.0,0.00023475,2]
[387138383,1758588741245,-150.0,0.00023501,2]
[387138384,1758588741256,-196.5,0.00023504,2]
[387138385,1758588741266,-150.0,0.00023534,2]
[387138386,1758588741277,-1000.0,0.00023537,2]
[387138387,1758588741289,-400.0,0.00023554,2]
[387138388,1758588741300,-500.0,0.00023555,2]
[387138389,1758588741311,-1741.0,0.00023555,2]
[387138390,1758588741320,-496.0,0.00023555,2]
[387138391,1758588741331,-500.0,0.00023555,2]
[387138392,1758588741342,-539.0,0.00023555,2]
[387138393,1758588741353,-400.0,0.00023555,2]
[387138394,1758588741365,-553.8,0.00023555,2]
[387138395,1758588741374,-451.75,0.00023555,2]
[387138396,1758588741383,-400.0,0.00023555,2]
[387138397,1758588741393,-739.8,0.00023555,2]
[387138398,1758588741406,-631.13,0.00023555,2]
[387138399,1758588741419,-403.68,0.00023555,2]
[387138400,1758588741431,-400.0,0.00023555,2]
[387138401,1758588741439,-400.0,0.00023555,2]
[387138402,1758588741449,-400.0,0.00023555,2]
[387138403,1758588741459,-455.09,0.00023555,2]
[387138404,1758588741471,-400.0,0.00023558,2]
[387138405,1758588741483,-445.49,0.00023559,2]
[387138406,1758588741493,-433.86,0.00023559,2]
[387138407,1758588741505,-400.0,0.00023559,2]
[387138408,1758588741514,-345.21,0.00023559,2]
[387138409,1758588741524,-400.0,0.00023559,2]
[387138410,1758588741533,-400.0,0.00023559,2]
[387138411,1758588741543,-400.0,0.00023559,2]
[387138412,1758588741552,-417.58,0.00023559,2]
[387138413,1758588741562,-400.0,0.00023559,2]
[387138414,1758588741571,-400.0,0.00023559,2]
[387138415,1758588741581,-400.0,0.00023559,2]
[387138416,1758588741591,-400.0,0.00023559,2]
[387138417,1758588741601,-400.0,0.00023559,2]
[387138418,1758588741611,-729.73,0.00023559,2]
[387138419,1758588741621,-400.0,0.00023559,2]
[387138420,1758588741630,-1262.42,0.00023559,2]
[387138421,1758588741639,-495.91,0.00023559,2]
[387138422,1758588741649,-402.51,0.00023559,2]
[387138423,1758588741658,-796.01,0.00023559,2]
[387138424,1758588741667,-431.35,0.00023559,2]
[387138425,1758588741677,-2335.81,0.00023559,2]
[387138426,1758588741687,-1029.46,0.00023559,2]
[387138427,1758588741696,-465.65,0.00023559,2]
[387138428,1758588741706,-400.0,0.00023559,2]
[387138429,1758588741716,-1832.67,0.00023559,2]
[387138430,1758588741725,-1616.25,0.00023559,2]
[387138431,1758588741735,-400.0,0.00023559,2]
[387138432,1758588741744,-400.0,0.00023559,2]
[387138433,1758588741754,-836.01,0.00023559,2]
[387138434,1758588741763,-400.0,0.00023559,2]
[387138435,1758588741773,-400.0,0.00023559,2]
[387138436,1758588741782,-354.94,0.00023559,2]
[387138437,1758588741791,-400.0,0.00023559,2]
[387138438,1758588741800,-1061.09,0.00023559,2]
[387138439,1758588741811,-522.0,0.00023559,2]
[387138440,1758588741820,-400.0,0.00023559,2]
[387138441,1758588741830,-3384.62,0.00023559,2]
[387138442,1758588741839,-2060.76,0.00023559,2]
[387138443,1758588741849,-530.11,0.00023559,2]
[387138444,1758588741858,-530.0,0.00023559,2]
[387138445,1758588741867,-922.13,0.00023559,2]
[387138446,1758588741877,-400.0,0.00023559,2]
[387138447,1758588741887,-754.65,0.00023559,2]
[387138448,1758588741896,-520.03,0.00023559,2]
[387138449,1758588741906,-508.94,0.00023559,2]
[387138450,1758588741918,-400.0,0.00023559,2]
[387138451,1758588741927,-1169.65,0.00023559,2]
[387138452,1758588741937,-1903.352168,0.00023559,2]
[387138453,1758588741946,-400.0,0.0002356,2]
[387138454,1758588741956,-400.0,0.0002356,2]
[387138455,1758588741965,-400.0,0.0002356,2]
[387138456,1758588741975,-400.0,0.0002356,2]
[387138457,1758588741987,-674.13,0.0002356,2]
[387138458,1758588741997,-400.0,0.0002356,2]
[387138459,1758588742009,-490.65,0.0002356,2]
[387138460,1758588742019,-410.63,0.0002356,2]
[387138461,1758588742029,-750.91,0.0002356,2]
[387138462,1758588742039,-554.46,0.0002356,2]
[387138463,1758588742048,-544.47,0.0002356,2]
[387138464,1758588742058,-859.26,0.0002356,2]
[387138465,1758588742068,-400.0,0.0002356,2]
[387138466,1758588742078,-660.35,0.0002356,2]
[387138467,1758588742089,-410.37,0.0002356,2]
[387138468,1758588742099,-1016.77,0.0002356,2]
[387138469,1758588742114,-400.0,0.0002356,2]
[387138470,1758588742123,-484.13,0.0002356,2]
[387138471,1758588742133,-682.51,0.0002356,2]
[387138472,1758588742142,-400.0,0.0002356,2]
[387138473,1758588742151,-588.84,0.0002356,2]
[387138474,1758588742161,-527.41,0.0002356,2]
[387138475,1758588742170,-769.14,0.0002356,2]
[387138476,1758588742179,-400.0,0.0002356,2]
[387138477,1758588742188,-400.0,0.0002356,2]
[387138478,1758588742208,-450.01,0.0002356,2]
[387138479,1758588742225,-495.05,0.0002356,2]
[387138480,1758588742244,-400.0,0.0002356,2]
[387138481,1758588742263,-593.36,0.0002356,2]
[387138482,1758588742279,-445.15,0.0002356,2]
[387138483,1758588742298,-769.03,0.0002356,2]
[387138484,1758588742317,-537.23,0.0002356,2]
[387138485,1758588742335,-400.0,0.0002356,2]
[387138486,1758588742354,-400.0,0.0002356,2]
[387138487,1758588742372,-1440.81,0.0002356,2]
[387138488,1758588742391,-2249.616654,0.0002356,2]
[387138489,1758588742405,-400.0,0.0002356,2]
[387138490,1758588742424,-501.01,0.0002356,2]
[387138491,1758588742438,-493.6,0.0002356,2]
[387138492,1758588742457,-400.0,0.0002356,2]
[387138493,1758588742472,-969.65,0.0002356,2]
[387138494,1758588742489,-433.42,0.0002356,2]
[387138495,1758588742504,-577.66,0.0002356,2]
[387138496,1758588742519,-803.42,0.0002356,2]
[387138497,1758588742535,-651.06,0.0002356,2]
[387138498,1758588742551,-414.87,0.0002356,2]
[387138499,1758588742566,-602.08,0.0002356,2]
[387138500,1758588742582,-400.0,0.0002356,2]
[387138501,1758588742599,-400.0,0.0002356,2]
[387138502,1758588742614,-697.68,0.0002356,2]
[387138503,1758588742629,-1169.47,0.0002356,2]
[387138504,1758588742645,-400.0,0.0002356,2]
[387138505,1758588742660,-514.36,0.0002356,2]
[387138506,1758588742674,-440.26,0.0002356,2]
[387138507,1758588742690,-593.88,0.0002356,2]
[387138508,1758588742706,-1060.97,0.0002356,2]
[387138509,1758588742721,-743.55,0.0002356,2]
[387138510,1758588742736,-620.51,0.0002356,2]
[387138511,1758588742752,-400.0,0.0002356,2]
[387138512,1758588742766,-695.32,0.0002356,2]
[387138513,1758588742782,-447.81,0.0002356,2]
[387138514,1758588742796,-909.99,0.0002356,2]
[387138515,1758588742811,-400.0,0.0002356,2]
[387138516,1758588742825,-609.54,0.0002356,2]
[387138517,1758588742841,-400.0,0.0002356,2]
[387138518,1758588742855,-503.16,0.0002356,2]
[387138519,1758588742870,-652.42,0.0002356,2]
[387138520,1758588742885,-1926.15,0.0002356,2]
[387138521,1758588742901,-808.98,0.0002356,2]
[387138522,1758588742917,-997.93,0.0002356,2]
[387138523,1758588742930,-2763.9,0.0002356,2]
[387138524,1758588742945,-822.69,0.0002356,2]
[387138525,1758588742959,-1231.62,0.0002356,2]
[387138526,1758588742973,-435.88,0.0002356,2]
[387138527,1758588742988,-400.0,0.0002356,2]
[387138528,1758588743002,-400.0,0.0002356,2]
[387138529,1758588743017,-1082.02,0.0002356,2]